bitfinex-derivatives/quotes_SOLF0:USTF0_20250224
["timestamp","ask_amount","ask_price","bid_price","bid_amount"]
[1740400187610,6.2658,159.57,159.54,0.04367622]
[1740400188213,6.266,159.56,159.54,0.04367622]
[1740400189909,6.2662,159.55,159.54,0.04367622]
[1740400194616,1.8992,159.58,159.44,22.23732376]
[1740400194918,23.35253426,159.57,159.47,22.23732376]
[1740400195113,22.23732376,159.55,159.45,22.23732376]
[1740400195317,22.23732376,159.55,159.45,28.50722376]
[1740400195909,6.2686,159.49,159.48,0.04475847]
[1740400199413,6.2678,159.51,159.48,0.04475847]
[1740400199617,6.2678,159.51,159.49,22.23732376]
[1740400200317,0.0433194,159.52,159.49,22.23732376]
[1740400200621,6.2682,159.5,159.49,22.23732376]
[1740400201120,6.2686,159.49,159.48,0.04475847]
[1740400207325,6.2701,159.45,159.42,6.2711]
[1740400207526,1.941,159.5,159.41,22.23732376]
[1740400207730,1.941,159.5,159.39,22.23732376]
[1740400208131,22.23732376,159.49,159.41,6.2716]
[1740400208629,6.27,159.46,159.43,6.31505756]
[1740400208821,0.04231931,159.47,159.43,0.04435756]
[1740400209331,6.2705,159.44,159.43,0.04435756]
[1740400212033,0.04231931,159.47,159.43,22.28168132]
[1740400212234,0.04231931,159.47,159.45,22.23732376]
[1740400212635,9.88,159.57,159.47,6.269]
[1740400212836,4.91864398,159.56,159.48,22.23732376]
[1740400213033,3.8034,159.56,159.48,22.23732376]
[1740400213239,6.2678,159.51,159.47,6.269]
[1740400213838,0.04673782,159.51,159.47,0.04343665]
[1740400214038,0.04673782,159.51,159.48,6.2689]
[1740400215538,0.04673782,159.51,159.47,0.04343665]
[1740400215737,6.31453782,159.51,159.49,6.2686]
[1740400216033,0.04673782,159.51,159.49,6.2686]
[1740400219336,6.31453782,159.51,159.48,6.2689]
[1740400220043,0.04673782,159.51,159.47,0.04343665]
[1740400220238,5.7485,159.5,159.42,22.23732376]
[1740400220741,6.2701,159.46,159.42,28.50852376]
[1740400221040,5.7485,159.5,159.42,28.50852376]
[1740400221436,0.04162653,159.48,159.44,0.04344664]
[1740400222739,0.04162653,159.48,159.38,22.23732376]
[1740400222938,22.23732376,159.48,159.38,22.23732376]
[1740400223547,22.23732376,159.46,159.36,22.23732376]
[1740400223942,6.31227152,159.43,159.39,6.31407914]
[1740400224146,0.04107152,159.43,159.39,6.2724]
[1740400224350,0.04107152,159.43,159.39,6.31779855]
[1740400224743,6.2713,159.42,159.39,0.04539855]
[1740400225643,0.04107152,159.43,159.4,22.23732376]
[1740400225946,6.2688,159.49,159.42,22.23732376]
[1740400226252,6.2688,159.49,159.45,22.23732376]
[1740400226551,10.1221,159.5,159.46,6.2696]
[1740400227052,10.16312182,159.5,159.46,6.31588067]
[1740400227248,3.89472182,159.5,159.46,0.04628067]
[1740400227449,6.2693,159.47,159.46,0.04628067]
[1740400228452,3.89472182,159.5,159.41,22.23732376]
[1740400228646,26.09102376,159.5,159.41,22.23732376]
[1740400229648,6.2703,159.45,159.44,0.04053337]
[1740400233353,0.04102577,159.47,159.37,22.23732376]
[1740400233654,22.23732376,159.46,159.35,22.23732376]
[1740400233959,6.2727,159.39,159.35,22.23732376]
[1740400234258,3.7572,159.45,159.35,28.51122376]
[1740400234461,0.04188428,159.39,159.35,28.55602654]
[1740400234653,0.04188428,159.39,159.35,28.51122376]
[1740400234857,0.04188428,159.39,159.35,28.55129603]
[1740400235155,6.2732,159.38,159.35,28.55129603]
[1740400235362,0.04188428,159.39,159.35,22.27739603]
[1740400235656,0.04188428,159.39,159.35,0.04007227]
[1740400239561,6.2735,159.37,159.35,0.04007227]
[1740400240263,0.04188428,159.39,159.36,6.2734]
[1740400240562,12.538,159.48,159.37,22.23732376]
[1740400240762,6.2712,159.43,159.39,28.50972376]
[1740400241763,6.31155922,159.43,159.39,28.55288673]
[1740400242768,0.04035922,159.43,159.41,28.50862376]
[1740400242970,0.04035922,159.43,159.41,22.23732376]
[1740400243164,1.8297,159.49,159.44,22.23732376]
[1740400243365,1.9707,159.51,159.46,22.23732376]
[1740400244268,0.04432956,159.5,159.47,0.0396132]
[1740400244466,1.9707,159.51,159.44,22.23732376]
[1740400244670,1.9707,159.51,159.37,0.197]
[1740400244671,6.2694,159.47,159.42,22.23732376]
[1740400245063,6.2694,159.47,159.46,0.04600908]
[1740400246962,6.2704,159.45,159.4,22.23732376]
[1740400247367,22.23732376,159.5,159.4,22.23732376]
[1740400247568,22.23732376,159.48,159.38,22.23732376]
[1740400248072,6.2713,159.42,159.41,0.03995133]
[1740400250976,6.2732,159.38,159.35,22.23732376]
[1740400251272,25.97582376,159.44,159.35,22.23732376]
[1740400251463,6.273,159.38,159.35,22.23732376]
[1740400251872,3.7385,159.44,159.35,22.23732376]
[1740400252075,0.04214739,159.38,159.35,28.55461161]
[1740400252775,0.04214739,159.38,159.35,22.28081161]
[1740400252971,0.04214739,159.38,159.36,6.2736]
[1740400253573,0.04214739,159.38,159.37,22.23732376]
[1740400253771,6.2716,159.42,159.38,6.2728]
[1740400254069,1.8594,159.44,159.39,22.23732376]
[1740400254276,1.9721,159.45,159.39,22.23732376]
[1740400254673,6.2709,159.43,159.41,22.23732376]
[1740400255778,0.04500215,159.44,159.41,22.23732376]
[1740400255779,6.31570215,159.44,159.41,28.50882376]
[1740400257578,6.271,159.43,159.41,22.23732376]
[1740400258376,6.271,159.43,159.4,6.31162249]
[1740400258571,0.04500215,159.44,159.4,0.03962249]
[1740400258777,6.2717,159.41,159.4,0.03962249]
[1740400261371,0.04500215,159.44,159.4,0.03962249]
[1740400262481,6.2717,159.41,159.4,0.03962249]
[1740400262876,3.8397,159.43,159.33,22.23732376]
[1740400263180,3.8397,159.43,159.35,22.23732376]
[1740400263379,1.9212,159.43,159.35,22.23732376]
[1740400263579,6.2719,159.41,159.38,6.2726]
[1740400263984,6.2719,159.41,159.38,0.04441672]
[1740400263985,6.3200656,159.41,159.38,0.04441672]
[1740400264181,0.0481656,159.41,159.39,6.2725]
[1740400264775,0.0481656,159.41,159.38,0.04441672]
[1740400265682,6.2725,159.39,159.38,0.04441672]
[1740400266082,0.0481656,159.41,159.38,0.04441672]
[1740400267183,6.3200656,159.41,159.38,6.31701672]
[1740400267985,0.0481656,159.41,159.38,0.04441672]
[1740400268175,0.0481656,159.41,159.4,6.2721]
[1740400268684,0.0481656,159.41,159.39,6.2723]
[1740400270486,0.0481656,159.41,159.38,0.04441672]
[1740400271586,0.0481656,159.41,159.39,6.2725]
[1740400273685,6.3200656,159.41,159.38,6.31711672]
[1740400274284,6.3200656,159.41,159.39,6.2724]
[1740400274583,6.3200656,159.41,159.38,0.04441672]
[1740400274781,0.0481656,159.41,159.38,0.04441672]
[1740400275478,6.2722,159.4,159.38,6.31711672]
[1740400275984,6.3199656,159.41,159.39,6.2724]
[1740400277282,0.0481656,159.41,159.39,6.2724]
[1740400278289,6.3200656,159.41,159.38,6.31701672]
[1740400279286,6.3200656,159.41,159.39,6.2725]
[1740400279686,6.3200656,159.41,159.39,20.41938563]
[1740400281985,6.2725,159.39,159.38,0.04441672]
[1740400282185,14.14688563,159.39,159.32,14.14688563]
[1740400282986,6.2737,159.36,159.32,20.42188563]
[1740400283190,6.2737,159.36,159.34,0.0472357]
[1740400283789,6.2741,159.35,159.34,0.0472357]
[1740400284486,0.04176035,159.37,159.31,34.83140684]
[1740400284687,6.2752,159.33,159.31,34.83140684]
[1740400284894,22.12097221,159.36,159.31,34.83140684]
[1740400285090,6.2752,159.32,159.31,19.79890684]
[1740400285295,6.2752,159.32,159.31,16.79190684]
[1740400285489,22.12097221,159.34,159.3,69.6628137]
[1740400285684,0.04492058,159.33,159.3,69.70273336]
[1740400285884,0.04492058,159.33,159.3,0.03991966]
[1740400286188,22.12097221,159.32,159.25,8.63789342]
[1740400286388,32.02097221,159.32,159.25,8.63789342]
[1740400286597,6.2761,159.3,159.25,8.63789342]
[1740400287296,0.03998241,159.29,159.26,0.04814802]
[1740400287796,6.277,159.28,159.26,0.04814802]
[1740400288698,0.03998241,159.29,159.26,0.04814802]
[1740400288893,6.31648241,159.29,159.26,0.04814802]
[1740400290999,0.03998241,159.29,159.26,0.04814802]
[1740400291797,0.03998241,159.29,159.28,6.2768]
[1740400292599,200.9,159.38,159.31,6.2754]
[1740400292902,7.39002967,159.37,159.29,22.12097221]
[1740400293091,6.2734,159.37,159.29,22.12097221]
[1740400293291,6.2734,159.37,159.32,6.2749]
[1740400293694,0.04626105,159.36,159.33,0.04323093]
[1740400294696,0.04626105,159.36,159.33,22.16420314]
[1740400295605,0.04626105,159.36,159.35,6.2741]
[1740400296501,0.04626105,159.36,159.33,0.04323093]
[1740400296903,0.04626105,159.36,159.33,6.31773093]
[1740400297206,0.04626105,159.36,159.33,0.04323093]
[1740400299609,0.04626105,159.36,159.34,6.2743]
[1740400299908,0.04626105,159.36,159.33,0.04323093]
[1740400300903,6.2745,159.34,159.33,0.04323093]
[1740400302503,6.2745,159.34,159.33,3.093e-05]
[1740400303011,17.2913073,159.34,159.33,3.093e-05]
[1740400303805,6.2779,159.26,159.22,6.2789]
[1740400304200,22.12097221,159.3,159.21,1.8791]
[1740400304407,22.12097221,159.3,159.17,3.9009]
[1740400304702,22.12097221,159.28,159.17,26.02187221]
[1740400304903,6.28,159.2,159.17,26.02187221]
[1740400305411,6.32650669,159.2,159.17,26.06334177]
[1740400305805,0.04650669,159.2,159.17,26.06334177]
[1740400306005,0.04650669,159.2,159.18,6.2804]
[1740400306208,0.04650669,159.2,159.17,26.06334177]
[1740400308307,6.2804,159.19,159.17,26.06334177]
[1740400308505,0.04650669,159.2,159.17,3.94236956]
[1740400308707,0.04650669,159.2,159.17,0.04146956]
[1740400308908,6.2807,159.19,159.17,0.04146956]
[1740400309412,6.2808,159.18,159.17,0.04146956]
[1740400311415,0.04650669,159.2,159.17,0.04146956]
[1740400311603,0.04650669,159.2,159.17,22.16244177]
[1740400312014,0.04650669,159.2,159.18,6.2805]
[1740400312711,0.04650669,159.2,159.19,6.2804]
[1740400312917,0.04650669,159.2,159.17,22.16244177]
[1740400313117,0.04650669,159.2,159.18,6.2805]
[1740400313417,0.04650669,159.2,159.17,22.16244177]
[1740400314217,0.04650669,159.2,159.17,0.04146956]
[1740400316321,6.2804,159.19,159.17,0.04146956]
[1740400316809,0.04650669,159.2,159.17,0.04146956]
[1740400317014,6.32660669,159.2,159.17,0.04146956]
[1740400317520,6.32660669,159.2,159.17,6.32256956]
[1740400317919,0.04650669,159.2,159.17,0.04146956]
[1740400318109,6.2804,159.19,159.17,0.04146956]
[1740400318314,0.04650669,159.2,159.17,0.04146956]
[1740400319019,6.2806,159.19,159.17,0.04146956]
[1740400319621,6.2808,159.18,159.17,0.04146956]
[1740400320624,6.2804,159.19,159.17,0.04146956]
[1740400321317,0.04650669,159.2,159.17,0.04146956]
[1740400322428,6.2808,159.18,159.17,0.04146956]
[1740400323325,6.2806,159.19,159.17,0.04146956]
[1740400323719,6.2806,159.19,159.17,22.16244177]
[1740400324619,0.04650669,159.2,159.17,22.16244177]
[1740400324821,6.32670669,159.2,159.17,28.44354177]
[1740400325228,6.2804,159.19,159.17,0.04146956]
[1740400325925,0.04650669,159.2,159.17,0.04146956]
[1740400326131,6.2808,159.18,159.17,0.04146956]
[1740400329330,6.2808,159.18,159.17,6.956e-05]
[1740400332329,12.5624,159.17,159.06,3.7827]
[1740400332531,22.12097221,159.14,159.06,3.7827]
[1740400333030,6.2851,159.07,159.06,3.7827]
[1740400334229,0.04013693,159.08,159.06,3.7827]
[1740400334539,6.32513693,159.08,159.06,3.7827]
[1740400336039,6.2851,159.07,159.06,3.7827]
[1740400337733,0.04013693,159.08,159.06,32.18887221]
[1740400337934,116.06954076,159.22,159.08,22.12097221]
[1740400338132,116.06954076,159.22,159.12,22.12097221]
[1740400338435,6.2818,159.16,159.12,28.40407221]
[1740400339028,6.32756876,159.16,159.12,28.44857725]
[1740400339435,6.2821,159.15,159.12,22.16547725]
[1740400339941,6.32736876,159.16,159.12,28.44847725]
[1740400340444,6.32736876,159.16,159.13,1.8686]
[1740400341241,0.04576876,159.16,159.13,1.8686]
[1740400341444,0.04576876,159.16,159.12,0.04450504]
[1740400341843,0.04576876,159.16,159.12,22.16547725]
[1740400342146,71.49006855,159.22,159.14,22.12097221]
[1740400342534,71.49006855,159.22,159.14,28.40307221]
[1740400342743,32.02097221,159.25,159.14,28.40307221]
[1740400342940,1.11754423,159.24,159.14,28.40307221]
[1740400343246,6.2806,159.19,159.17,0.0444119]
[1740400343549,0.04549786,159.21,159.17,0.0444119]
[1740400343745,6.2808,159.18,159.17,0.0444119]
[1740400345150,6.2808,159.18,159.17,1.19e-05]
[1740400346553,6.2805,159.19,159.17,1.19e-05]
[1740400346739,0.04549786,159.21,159.17,1.19e-05]
[1740400346944,0.04549786,159.21,159.18,6.2807]
[1740400347249,0.04549786,159.21,159.17,1.19e-05]
[1740400347250,6.28,159.2,159.17,1.19e-05]
[1740400347453,6.28,159.2,159.17,6.2809119]
[1740400348750,0.04549786,159.21,159.17,1.19e-05]
[1740400349353,6.32519786,159.21,159.19,6.2803]
[1740400349557,0.04549786,159.21,159.17,1.19e-05]
[1740400349750,0.04549786,159.21,159.18,22.12097221]
[1740400350445,0.04549786,159.21,159.17,1.19e-05]
[1740400351548,0.04549786,159.21,159.18,22.12097221]
[1740400351956,0.04549786,159.21,159.17,1.19e-05]
[1740400353055,0.04549786,159.21,159.2,6.28]
[1740400359263,0.04549786,159.21,159.17,1.19e-05]
[1740400361065,6.2808,159.18,159.17,1.19e-05]
[1740400366071,6.2802,159.2,159.17,1.19e-05]
[1740400366470,6.2802,159.2,159.17,28.40178411]
[1740400366673,6.32509786,159.21,159.17,22.12098411]
[1740400366869,6.32509786,159.21,159.18,1.9579]
[1740400367070,6.32509786,159.21,159.18,8.2383]
[1740400367266,0.04549786,159.21,159.19,22.12097221]
[1740400367873,0.04549786,159.21,159.2,6.28]
[1740400368171,6.2785,159.24,159.2,6.28]
[1740400369271,0.04225497,159.24,159.22,6.2789]
[1740400371270,0.04225497,159.24,159.2,0.04734446]
[1740400372871,6.2794,159.22,159.2,0.04734446]
[1740400374078,0.04225497,159.24,159.2,0.04734446]
[1740400375372,6.2796,159.21,159.2,0.04734446]
[1740400378376,6.2796,159.21,159.2,4.446e-05]
[1740400380980,0.04225497,159.24,159.2,4.446e-05]
[1740400381176,0.04225497,159.24,159.2,22.12101667]
[1740400381574,6.32085497,159.24,159.2,28.40071667]
[1740400382178,0.04225497,159.24,159.2,22.12101667]
[1740400382379,0.04225497,159.24,159.2,4.446e-05]
[1740400382678,6.2791,159.23,159.2,4.446e-05]
[1740400383083,0.04225497,159.24,159.2,4.446e-05]
[1740400383381,6.2789,159.23,159.2,4.446e-05]
[1740400383684,0.04225497,159.24,159.2,4.446e-05]
[1740400383987,6.2796,159.21,159.2,4.446e-05]
[1740400385680,0.04225497,159.24,159.2,4.446e-05]
[1740400385882,6.2789,159.23,159.2,4.446e-05]
[1740400386184,0.04225497,159.24,159.2,22.12101667]
[1740400386381,0.04225497,159.24,159.21,6.2793]
[1740400386973,0.04225497,159.24,159.2,22.12101667]
[1740400387179,0.04225497,159.24,159.22,6.279]
[1740400387383,0.04225497,159.24,159.22,22.12097221]
[1740400387583,0.79684756,159.31,159.22,22.12097221]
[1740400387774,6.2767,159.29,159.25,6.2778]
[1740400388177,105.58929417,159.34,159.26,22.12097221]
[1740400388781,0.04543939,159.32,159.3,22.12097221]
[1740400388984,103.71649417,159.34,159.3,22.12097221]
[1740400389181,103.71649417,159.34,159.32,22.12097221]
[1740400389381,103.71649417,159.34,159.3,22.12097221]
[1740400389785,103.71649417,159.34,159.33,6.2749]
[1740400389986,6.273,159.38,159.33,6.2749]
[1740400390287,0.04306654,159.35,159.34,6.2745]
[1740400390483,0.04306654,159.35,159.32,22.16330683]
[1740400391087,6.2749,159.33,159.32,0.04233462]
[1740400391291,0.04306654,159.35,159.32,0.04233462]
[1740400391782,0.04306654,159.35,159.32,22.16330683]
[1740400392281,0.04306654,159.35,159.33,6.2745]
[1740400392483,0.04306654,159.35,159.32,22.16330683]
[1740400394190,0.04306654,159.35,159.34,6.2745]
[1740400395191,0.04306654,159.35,159.32,22.16330683]
[1740400395487,1.89,159.44,159.34,22.12097221]
[1740400395687,9.9,159.47,159.37,22.12097221]
[1740400395887,1.11598175,159.46,159.37,22.12097221]
[1740400396086,23.23695396,159.46,159.35,22.12097221]
[1740400396289,1.11598175,159.45,159.35,22.12097221]
[1740400396491,22.12097221,159.46,159.35,22.12097221]
[1740400396798,6.2717,159.41,159.38,0.04198293]
[1740400396999,0.04690937,159.42,159.38,0.04198293]
[1740400397294,6.2721,159.4,159.38,0.04198293]
[1740400397496,0.04690937,159.42,159.38,0.04198293]
[1740400398590,6.2725,159.39,159.38,0.04198293]
[1740400399896,6.2725,159.39,159.38,8.293e-05]
[1740400404302,6.2718,159.41,159.38,8.293e-05]
[1740400407004,0.04690937,159.42,159.38,8.293e-05]
[1740400407808,6.2725,159.39,159.38,8.293e-05]
[1740400411112,0.04690937,159.42,159.38,8.293e-05]
[1740400412407,6.2725,159.39,159.38,8.293e-05]
[1740400413312,6.2718,159.41,159.38,8.293e-05]
[1740400413710,0.04690937,159.42,159.38,8.293e-05]
[1740400414008,6.31830937,159.42,159.39,6.2724]
[1740400415013,0.04690937,159.42,159.39,22.12097221]
[1740400416712,0.04690937,159.42,159.41,6.2717]
[1740400417114,0.04690937,159.42,159.38,8.293e-05]
[1740400417809,22.16788158,159.42,159.38,8.293e-05]
[1740400418013,9.88,159.41,159.38,8.293e-05]
[1740400418212,6.2725,159.39,159.38,8.293e-05]
[1740400420510,7.38895434,159.39,159.38,8.293e-05]
[1740400422018,7.38894064,159.39,159.38,8.293e-05]
[1740400423616,215.09867221,159.4,159.26,22.12097221]
[1740400423821,22.12097221,159.35,159.25,8.1907]
[1740400424318,22.12097221,159.35,159.25,1.9128]
[1740400424521,22.12097221,159.33,159.24,1.8168]
[1740400424720,11.8615,159.32,159.24,1.8168]
[1740400425018,0.04092757,159.3,159.27,0.04086813]
[1740400425420,6.2772,159.28,159.27,0.04086813]
[1740400425618,0.04092757,159.3,159.27,0.04086813]
[1740400426119,6.2767,159.29,159.27,0.04086813]
[1740400426424,0.04092757,159.3,159.27,0.04086813]
[1740400427218,0.04092757,159.3,159.28,6.2767]
[1740400427526,0.04092757,159.3,159.27,0.04086813]
[1740400428330,0.04092757,159.3,159.27,6.31796813]
[1740400428514,0.04092757,159.3,159.27,0.04086813]
[1740400428920,0.04092757,159.3,159.29,6.2764]
[1740400429224,0.04092757,159.3,159.27,0.04086813]
[1740400429924,0.04092757,159.3,159.28,6.2766]
[1740400430323,0.04092757,159.3,159.27,0.04086813]
[1740400430522,0.04092757,159.3,159.27,6.31786813]
[1740400431427,0.04092757,159.3,159.27,0.04086813]
[1740400432626,0.04092757,159.3,159.28,6.2768]
[1740400433426,0.04092757,159.3,159.29,6.2764]
[1740400433625,9.88,159.37,159.28,22.12097221]
[1740400433825,6.2749,159.33,159.3,6.276]
[1740400434526,6.2746,159.34,159.31,6.2756]
[1740400434729,6.31761551,159.34,159.31,6.3221044]
[1740400434929,6.2751,159.33,159.31,0.0465044]
[1740400435129,0.04301551,159.34,159.31,0.0465044]
[1740400435524,6.2752,159.32,159.31,0.0465044]
[1740400436131,0.04301551,159.34,159.31,0.0465044]
[1740400436630,6.2752,159.32,159.31,0.0465044]
[1740400436831,0.04301551,159.34,159.31,0.0465044]
[1740400438030,6.2752,159.32,159.31,0.0465044]
[1740400438530,0.04301551,159.34,159.31,0.0465044]
[1740400438736,6.31781551,159.34,159.31,0.0465044]
[1740400439737,0.04301551,159.34,159.31,0.0465044]
[1740400440129,6.31771551,159.34,159.31,0.0465044]
[1740400440329,0.04301551,159.34,159.31,0.0465044]
[1740400440733,6.2752,159.32,159.31,0.0465044]
[1740400441533,6.2775,159.27,159.22,22.12097221]
[1740400441736,22.12097221,159.33,159.25,6.278]
[1740400441933,6.277,159.28,159.22,22.12097221]
[1740400442327,22.12097221,159.33,159.24,6.2782]
[1740400442531,6.2773,159.27,159.24,6.2782]
[1740400442736,6.2773,159.27,159.24,6.32105783]
[1740400444632,6.2773,159.27,159.24,0.04285783]
[1740400445238,0.04695102,159.3,159.24,0.04285783]
[1740400445437,6.2776,159.26,159.24,0.04285783]
[1740400446837,6.278,159.25,159.24,0.04285783]
[1740400453541,0.04280095,159.27,159.18,6.2807]
[1740400453735,6.2797,159.21,159.17,22.12097221]
[1740400453935,22.12097221,159.26,159.17,22.12097221]
[1740400454545,6.28,159.21,159.17,28.40197221]
[1740400454744,0.04310176,159.23,159.2,0.04383692]
[1740400455546,6.32200176,159.23,159.2,0.04383692]
[1740400457242,6.32200176,159.23,159.2,6.32383692]
[1740400458042,0.04310176,159.23,159.2,0.04383692]
[1740400458549,6.2796,159.21,159.2,0.04383692]
[1740400459047,6.2796,159.21,159.2,3.692e-05]
[1740400460249,16.1796,159.21,159.2,3.692e-05]
[1740400464048,17.29733533,159.21,159.2,3.692e-05]
[1740400464850,6.2796,159.21,159.2,3.692e-05]
[1740400465347,0.04310176,159.23,159.2,3.692e-05]
[1740400468052,6.32210176,159.23,159.2,3.692e-05]
[1740400469043,0.04310176,159.23,159.2,3.692e-05]
[1740400469453,0.04310176,159.23,159.21,6.2796]
[1740400469650,0.04310176,159.23,159.21,8.2437]
[1740400470454,0.04310176,159.23,159.22,6.2792]
[1740400470654,0.04310176,159.23,159.21,1.9641]
[1740400470954,0.04310176,159.23,159.21,24.08507221]
[1740400471150,92.85267548,159.32,159.21,24.08507221]
[1740400471351,80.63170327,159.32,159.23,22.12097221]
[1740400471949,102.75267548,159.32,159.22,1.8463]
[1740400472156,22.12097221,159.3,159.21,1.9641]
[1740400472345,0.04115464,159.29,159.25,0.04585446]
[1740400472746,6.2776,159.26,159.25,0.04585446]
[1740400472948,0.04115464,159.29,159.25,0.04585446]
[1740400473153,6.2776,159.26,159.25,0.04585446]
[1740400473552,0.04115464,159.29,159.25,0.04585446]
[1740400473756,6.2774,159.27,159.25,0.04585446]
[1740400474357,0.04115464,159.29,159.25,0.04585446]
[1740400474552,6.2776,159.26,159.25,0.04585446]
[1740400474960,0.04115464,159.29,159.25,0.04585446]
[1740400475957,0.04115464,159.29,159.25,6.32385446]
[1740400476157,0.04115464,159.29,159.25,0.04585446]
[1740400477156,0.04115464,159.29,159.25,22.16682667]
[1740400477363,0.04115464,159.29,159.26,1.9453]
[1740400479758,6.31785464,159.29,159.26,8.2229]
[1740400480457,6.2769,159.28,159.26,8.2229]
[1740400481363,6.2769,159.28,159.26,1.9453]
[1740400482063,0.04115464,159.29,159.26,1.9453]
[1740400482262,6.31785464,159.29,159.26,8.2229]
[1740400482665,0.04115464,159.29,159.26,1.9453]
[1740400482960,6.277,159.28,159.26,1.9453]
[1740400483265,6.31785464,159.29,159.26,8.2229]
[1740400484261,6.2769,159.28,159.26,1.9453]
[1740400485365,6.2769,159.28,159.26,8.2229]
[1740400485570,6.2769,159.28,159.26,1.9453]
[1740400492377,0.04115464,159.29,159.26,1.9453]
[1740400492571,6.2768,159.28,159.26,1.9453]
[1740400492866,0.04115464,159.29,159.26,1.9453]
[1740400493469,0.04115464,159.29,159.25,0.04585446]
[1740400493669,14.21569333,159.29,159.25,0.04585446]
[1740400494068,6.2776,159.26,159.25,0.04585446]
[1740400500379,6.2776,159.26,159.18,14.17453869]
[1740400500572,14.17453869,159.24,159.17,14.17453869]
[1740400501079,22.4539,159.28,159.19,14.17453869]
[1740400501280,14.17453869,159.25,159.19,14.17453869]
[1740400501681,6.2797,159.21,159.2,0.04430463]
[1740400502981,20.45423869,159.21,159.2,0.04430463]
[1740400503184,20.45423869,159.21,159.2,4.63e-06]
[1740400507181,6.2831,159.12,159.1,14.17453869]
[1740400507587,14.17453869,159.15,159.1,14.17453869]
[1740400507885,6.2843,159.09,159.08,14.17453869]
[1740400508589,0.04506823,159.1,159.07,0.04702211]
[1740400508794,6.2847,159.08,159.07,0.04702211]
[1740400512180,6.2847,159.08,159.07,2.211e-05]
[1740400512483,22.19894467,159.09,158.96,22.19894467]
[1740400512688,22.19894467,159.05,158.95,11.8937]
[1740400512887,6.2884,158.99,158.95,5.604]
[1740400513086,22.19894467,159.03,158.95,5.604]
[1740400513285,32.09894467,159.03,158.95,5.604]
[1740400513488,0.04313525,159.01,158.97,0.0476939]
[1740400513983,6.2887,158.98,158.97,0.0476939]
[1740400514587,6.2882,159.0,158.97,0.0476939]
[1740400514786,0.04313525,159.01,158.97,0.0476939]
[1740400515189,22.24207992,159.01,158.97,0.0476939]
[1740400515386,6.2887,158.98,158.97,0.0476939]
[1740400515784,0.04313525,159.01,158.97,0.0476939]
[1740400516384,6.2856,159.06,159.01,6.2872]
[1740400516586,22.19894467,159.11,159.0,22.19894467]
[1740400516790,1.11856966,159.1,159.0,22.19894467]
[1740400516990,22.19894467,159.09,158.98,30.48154467]
[1740400517186,22.19894467,159.09,158.98,24.19304467]
[1740400517688,0.04352644,159.05,159.02,0.04447477]
[1740400518195,6.2867,159.03,159.02,0.04447477]
[1740400518885,6.2867,159.03,159.02,7.477e-05]
[1740400519489,28.48564467,159.03,159.02,7.477e-05]
[1740400520991,6.2867,159.03,159.02,7.477e-05]
[1740400521198,0.04352644,159.05,159.02,7.477e-05]
[1740400522696,6.32982644,159.05,159.02,7.477e-05]
[1740400523000,0.04352644,159.05,159.02,7.477e-05]
[1740400523690,0.04352644,159.05,159.02,6.28677477]
[1740400523895,0.04352644,159.05,159.02,22.19901944]
[1740400524299,0.04352644,159.05,159.02,7.477e-05]
[1740400524503,0.04352644,159.05,159.03,6.2864]
[1740400526498,0.04352644,159.05,159.02,6.28707477]
[1740400526694,0.04352644,159.05,159.02,7.477e-05]
[1740400526899,0.04352644,159.05,159.02,22.19901944]
[1740400527098,0.04352644,159.05,159.04,6.2863]
[1740400527304,0.04352644,159.05,159.02,22.19901944]
[1740400527697,0.04352644,159.05,159.04,6.2863]
[1740400527900,6.2841,159.1,159.04,22.19894467]
[1740400528101,186.67894467,159.16,159.04,22.19894467]
[1740400528402,6.2842,159.1,159.04,22.19894467]
[1740400528600,6.2842,159.1,159.06,22.19894467]
[1740400528997,6.32487796,159.1,159.06,22.24688012]
[1740400529199,0.04067796,159.1,159.06,22.24688012]
[1740400529408,5.8739,159.18,159.08,22.19894467]
[1740400530298,6.283,159.13,159.09,6.2843]
[1740400530501,6.283,159.13,159.11,0.04693308]
[1740400531803,6.2831,159.12,159.11,0.04693308]
[1740400537309,6.2831,159.12,159.11,3.308e-05]
[1740400539411,22.19894467,159.12,158.99,3.6954]
[1740400539711,6.2874,159.02,158.99,3.6954]
[1740400540311,6.33322642,159.02,158.99,3.73698946]
[1740400540807,0.04582642,159.02,158.99,32.22393413]
[1740400541012,0.04582642,159.02,158.99,25.93593413]
[1740400541715,0.04582642,159.02,159.0,6.2879]
[1740400546314,0.04582642,159.02,158.99,25.93593413]
[1740400546514,0.04582642,159.02,159.0,6.2879]
[1740400546917,6.2866,159.04,159.01,28.48604467]
[1740400547326,6.2866,159.04,159.01,22.19894467]
[1740400547614,6.2866,159.04,159.02,6.287]
[1740400547812,6.2858,159.06,159.02,6.287]